fUSD/lending_fUSD_20250105
["ID","MTS","AMOUNT","RATE_DAILY","PERIOD"]
[347794733,1736111451531,-500.0,0.00010819,2]
[347794734,1736111451540,-500.0,0.00010819,2]
[347794735,1736111451550,-500.0,0.00010819,2]
[347794736,1736111451559,-500.0,0.00010819,2]
[347794737,1736111451569,-262.1,0.00010819,2]
[347794738,1736111451579,-500.0,0.00010819,2]
[347794739,1736111451589,-500.0,0.00010819,2]
[347794740,1736111451599,-500.0,0.00010819,2]
[347794741,1736111451608,-500.0,0.00010819,2]
[347794742,1736111451617,-500.0,0.00010819,2]
[347794743,1736111451628,-500.0,0.00010819,2]
[347794744,1736111451639,-617.87,0.00010819,2]
[347794745,1736111451649,-500.0,0.00010819,2]
[347794746,1736111451660,-500.0,0.00010819,2]
[347794747,1736111451669,-500.0,0.00010819,2]
[347794748,1736111451680,-500.0,0.00010819,2]
[347794749,1736111451689,-500.0,0.00010819,2]
[347794750,1736111451699,-500.0,0.00010819,2]
[347794751,1736111451709,-919.62,0.00010819,2]
[347794752,1736111451719,-500.0,0.00010819,2]
[347794753,1736111451728,-511.61,0.00010819,2]
[347794754,1736111451737,-500.0,0.00010819,2]
[347794755,1736111451747,-500.0,0.0001082,2]
[347794756,1736111451756,-500.0,0.0001082,2]
[347794757,1736111451820,-247.2,0.0001082,2]
[347794758,1736111451829,-500.0,0.0001082,2]
[347794759,1736111451838,-500.0,0.0001082,2]
[347794760,1736111451846,-500.0,0.0001082,2]
[347794761,1736111451855,-500.0,0.0001082,2]
[347794762,1736111451863,-500.0,0.0001082,2]
[347794763,1736111451873,-500.0,0.0001082,2]
[347794764,1736111451883,-500.0,0.0001082,2]
[347794765,1736111451895,-567.45,0.0001082,2]
[347794766,1736111451904,-500.0,0.0001082,2]
[347794767,1736111451913,-500.0,0.0001082,2]
[347794768,1736111451922,-500.0,0.0001082,2]
[347794769,1736111451931,-500.0,0.0001082,2]
[347794770,1736111451940,-500.0,0.0001082,2]
[347794771,1736111451949,-500.0,0.0001082,2]
[347794772,1736111451959,-500.0,0.0001082,2]
[347794773,1736111451968,-500.0,0.0001082,2]
[347794774,1736111451977,-500.0,0.0001082,2]
[347794775,1736111451986,-500.0,0.0001082,2]
[347794776,1736111451996,-500.0,0.0001082,2]
[347794777,1736111452005,-500.0,0.0001082,2]
[347794778,1736111452015,-500.0,0.0001082,2]
[347794779,1736111452025,-500.0,0.0001082,2]
[347794780,1736111452035,-277.45347209,0.0001082,2]
[347794781,1736111452045,-1282.19,0.0001082,2]
[347794782,1736111452054,-500.0,0.0001082,2]
[347794783,1736111452064,-500.0,0.0001082,2]
[347794784,1736111452073,-500.0,0.0001082,2]
[347794785,1736111452083,-907.74,0.0001082,2]
[347794786,1736111452092,-607.24,0.0001082,2]
[347794787,1736111452103,-600.33,0.0001082,2]
[347794788,1736111452112,-500.0,0.0001082,2]
[347794789,1736111452121,-581.54,0.00010821,2]
[347794790,1736111452131,-693.3,0.00010821,2]
[347794791,1736111452140,-888.28,0.00010821,2]
[347794792,1736111452150,-500.0,0.00010821,2]
[347794793,1736111452159,-500.0,0.00010821,2]
[347794794,1736111452169,-500.0,0.00010821,2]
[347794795,1736111452178,-500.0,0.00010821,2]
[347794796,1736111452188,-647.31,0.00010821,2]
[347794797,1736111452197,-540.66,0.00010821,2]
[347794798,1736111452207,-796.69,0.00010821,2]
[347794799,1736111452217,-1201.96,0.00010821,2]
[347794800,1736111452227,-500.0,0.00010821,2]
[347794801,1736111452236,-641.75,0.00010821,2]
[347794802,1736111452246,-588.27,0.00010821,2]
[347794803,1736111452255,-153.0,0.00010833,2]
[347794804,1736111452263,-153.0,0.00010833,2]
[347794805,1736111452272,-153.0,0.00010833,2]
[347794806,1736111452281,-153.0,0.00010833,2]
[347794807,1736111452290,-153.0,0.00010833,2]
[347794808,1736111452299,-153.0,0.00010833,2]
[347794809,1736111452308,-153.0,0.00010833,2]
[347794810,1736111452317,-153.0,0.00010833,2]
[347794811,1736111452327,-153.0,0.00010833,2]
[347794812,1736111452337,-153.0,0.00010833,2]
[347794813,1736111452347,-153.0,0.00010833,2]
[347794814,1736111452356,-153.0,0.00010833,2]
[347794815,1736111452365,-153.0,0.00010833,2]
[347794816,1736111452375,-153.0,0.00010833,2]
[347794817,1736111452384,-2154.76967019,0.00010859,2]
[347794818,1736111452394,-4339.55286485,0.00010893,2]
[347794819,1736111452403,-180.0,0.00010932,2]
[347794820,1736111452414,-150.0,0.00010959,2]
[347794821,1736111452423,-2154.76967019,0.00010986,2]
[347794822,1736111452433,-400.0,0.00010986,2]
[347794823,1736111452442,-500.0,0.00010992,2]
[347794824,1736111452452,-500.0,0.00010992,2]
[347794825,1736111452462,-500.0,0.00010992,2]
[347794826,1736111452471,-224.04,0.00010992,2]
[347794827,1736111452480,-500.0,0.00010992,2]
[347794828,1736111452490,-500.0,0.00010992,2]
[347794829,1736111452499,-499.0,0.00011,2]
[347794830,1736111452509,-550.0,0.00011,2]
[347794831,1736111452519,-587.0,0.00011021,2]
[347794832,1736111452529,-150.0,0.00011047,2]
[347794833,1736111452538,-152.51,0.00011047,2]
[347794834,1736111452548,-500.0,0.00011092,2]
[347794835,1736111452558,-257.90902365,0.00011092,2]
[347794836,1736111452569,-742.06,0.00011092,2]
[347794837,1736111452579,-500.0,0.00011092,2]
[347794838,1736111452589,-653.13,0.00011092,2]
[347794839,1736111452599,-500.0,0.00011092,2]
[347794840,1736111452610,-762.11,0.00011092,2]
[347794841,1736111452619,-500.0,0.00011092,2]
[347794842,1736111452629,-547.88,0.00011092,2]
[347794843,1736111452641,-514.21,0.00011092,2]
[347794844,1736111452651,-567.66,0.00011092,2]
[347794845,1736111452662,-816.45,0.00011092,2]
[347794846,1736111452672,-500.0,0.00011092,2]
[347794847,1736111452682,-500.0,0.00011092,2]
[347794848,1736111452692,-500.0,0.00011093,2]
[347794849,1736111452702,-500.0,0.00011093,2]
[347794850,1736111452711,-500.0,0.00011093,2]
[347794851,1736111452722,-349.00017913,0.00011093,2]
[347794852,1736111452732,-500.0,0.00011093,2]
[347794853,1736111452742,-431.58,0.00011093,2]
[347794854,1736111452752,-500.0,0.00011093,2]
[347794855,1736111452761,-500.0,0.00011093,2]
[347794856,1736111452771,-500.0,0.00011093,2]
[347794857,1736111452783,-500.0,0.00011093,2]
[347794858,1736111452794,-500.0,0.00011093,2]
[347794859,1736111452804,-500.0,0.00011093,2]
[347794860,1736111452815,-500.0,0.00011093,2]
[347794861,1736111452825,-500.0,0.00011093,2]
[347794862,1736111452835,-367.89847645,0.00011093,2]
[347794863,1736111452845,-500.0,0.00011093,2]
[347794864,1736111452855,-158.866756,0.00011093,2]
[347794865,1736111452866,-988.5,0.00011093,2]
[347794866,1736111452876,-500.0,0.00011093,2]
[347794867,1736111452887,-500.0,0.00011093,2]
[347794868,1736111452898,-500.0,0.00011093,2]
[347794869,1736111452907,-613.59,0.00011093,2]
[347794870,1736111452918,-500.0,0.00011093,2]
[347794871,1736111452927,-500.0,0.00011093,2]
[347794872,1736111452938,-1498.61,0.00011093,2]
[347794873,1736111452948,-500.0,0.00011093,2]
[347794874,1736111452958,-500.0,0.00011093,2]
[347794875,1736111452968,-500.0,0.00011093,2]
[347794876,1736111452978,-500.0,0.00011093,2]
[347794877,1736111452988,-500.0,0.00011093,2]
[347794878,1736111452998,-500.0,0.00011093,2]
[347794879,1736111453008,-500.0,0.00011093,2]
[347794880,1736111453018,-977.17,0.00011093,2]
[347794881,1736111453028,-1067.44,0.00011093,2]
[347794882,1736111453038,-500.0,0.00011093,2]
[347794883,1736111453048,-500.0,0.00011093,2]
[347794884,1736111453059,-500.0,0.00011093,2]
[347794885,1736111453069,-1379.2,0.00011093,2]
[347794886,1736111453080,-500.0,0.00011093,2]
[347794887,1736111453090,-896.64,0.00011093,2]
[347794888,1736111453101,-500.0,0.00011093,2]
[347794889,1736111453111,-338.49326806,0.00011093,2]
[347794890,1736111453121,-500.0,0.00011093,2]
[347794891,1736111453132,-500.0,0.00011093,2]
[347794892,1736111453142,-500.0,0.00011093,2]
[347794893,1736111453153,-332.48521089,0.00011093,2]
[347794894,1736111453163,-500.0,0.00011093,2]
[347794895,1736111453174,-500.0,0.00011093,2]
[347794896,1736111453184,-500.0,0.00011093,2]
[347794897,1736111453194,-500.0,0.00011093,2]
[347794898,1736111453204,-500.0,0.00011093,2]
[347794899,1736111453214,-500.0,0.00011093,2]
[347794900,1736111453224,-500.0,0.00011093,2]
[347794901,1736111453236,-408.39,0.00011093,2]
[347794902,1736111453247,-500.0,0.00011093,2]
[347794903,1736111453257,-500.0,0.00011093,2]
[347794904,1736111453267,-500.0,0.00011093,2]
[347794905,1736111453278,-500.0,0.00011093,2]
[347794906,1736111453288,-919.62,0.00011093,2]
[347794907,1736111453299,-500.0,0.00011093,2]
[347794908,1736111453309,-511.61,0.00011093,2]
[347794909,1736111453320,-500.0,0.00011093,2]
[347794910,1736111453331,-500.0,0.00011094,2]
[347794911,1736111453340,-500.0,0.00011094,2]
[347794912,1736111453350,-500.0,0.00011094,2]
[347794913,1736111453360,-500.0,0.00011094,2]
[347794914,1736111453371,-500.0,0.00011094,2]
[347794915,1736111453382,-500.0,0.00011094,2]
[347794916,1736111453393,-605.88,0.00011094,2]
[347794917,1736111453403,-500.0,0.00011094,2]
[347794918,1736111453414,-500.0,0.00011094,2]
[347794919,1736111453425,-500.0,0.00011094,2]
[347794920,1736111453436,-500.0,0.00011094,2]
[347794921,1736111453447,-500.0,0.00011094,2]
[347794922,1736111453457,-500.0,0.00011094,2]
[347794923,1736111453468,-373.84769453,0.00011094,2]
[347794924,1736111453479,-173.39,0.00011094,2]
[347794925,1736111453489,-500.0,0.00011094,2]
[347794926,1736111453500,-1282.19,0.00011094,2]
[347794927,1736111453510,-500.0,0.00011094,2]
[347794928,1736111453521,-500.0,0.00011094,2]
[347794929,1736111453532,-500.0,0.00011094,2]
[347794930,1736111453543,-907.74,0.00011094,2]
[347794931,1736111453554,-607.24,0.00011094,2]
[347794932,1736111453565,-600.33,0.00011094,2]
[347794933,1736111453575,-500.0,0.00011094,2]
[347794934,1736111453586,-581.54,0.00011095,2]
[347794935,1736111453597,-693.3,0.00011095,2]
[347794936,1736111453607,-888.28,0.00011095,2]
[347794937,1736111453617,-500.0,0.00011095,2]
[347794938,1736111453627,-500.0,0.00011095,2]
[347794939,1736111453641,-500.0,0.00011095,2]
[347794940,1736111453652,-500.0,0.00011095,2]
[347794941,1736111453663,-647.31,0.00011095,2]
[347794942,1736111453674,-540.66,0.00011095,2]
[347794943,1736111453687,-796.69,0.00011095,2]
[347794944,1736111453699,-1201.96,0.00011095,2]
[347794945,1736111453714,-641.75,0.00011095,2]
[347794946,1736111453730,-588.27,0.00011095,2]
[347794947,1736111453745,-2154.76967019,0.00011114,2]
[347794948,1736111453757,-499.0,0.00011233,2]
[347794949,1736111453769,-2154.76967019,0.00011241,2]
[347794950,1736111453783,-500.0,0.00011266,2]
[347794951,1736111453796,-500.0,0.00011266,2]
[347794952,1736111453809,-500.0,0.00011266,2]
[347794953,1736111453824,-500.0,0.00011266,2]
[347794954,1736111453838,-500.0,0.00011266,2]
[347794955,1736111453852,-150.0,0.00011292,2]
[347794956,1736111453864,-715.1036,0.000113,2]
[347794957,1736111453875,-1000.0,0.00011338,2]
[347794958,1736111453888,-771.32,0.00011342,2]
[347794959,1736111453901,-437.68,0.00011342,2]
[347794960,1736111453913,-437.68,0.00011342,2]
[347794961,1736111453927,-437.16,0.00011342,2]
[347794962,1736111453940,-500.0,0.00011366,2]
[347794963,1736111453954,-742.06,0.00011366,2]
[347794964,1736111453967,-500.0,0.00011366,2]
[347794965,1736111453980,-653.13,0.00011366,2]
[347794966,1736111453994,-500.0,0.00011366,2]
[347794967,1736111454007,-762.11,0.00011366,2]
[347794968,1736111454020,-500.0,0.00011366,2]
[347794969,1736111454033,-547.88,0.00011366,2]
[347794970,1736111454045,-514.21,0.00011366,2]
[347794971,1736111454059,-567.66,0.00011366,2]
[347794972,1736111454073,-816.45,0.00011366,2]
[347794973,1736111454086,-500.0,0.00011366,2]
[347794974,1736111454098,-500.0,0.00011366,2]
[347794975,1736111454109,-500.0,0.00011367,2]
[347794976,1736111454119,-228.42390276,0.00011367,2]
[347794977,1736111454131,-500.0,0.00011367,2]
[347794978,1736111454145,-500.0,0.00011367,2]
[347794979,1736111454159,-500.0,0.00011367,2]
[347794980,1736111454170,-500.0,0.00011367,2]
[347794981,1736111454181,-500.0,0.00011367,2]
[347794982,1736111454192,-988.5,0.00011367,2]
[347794983,1736111454205,-500.0,0.00011367,2]
[347794984,1736111454219,-500.0,0.00011367,2]
[347794985,1736111454230,-1498.61,0.00011367,2]
[347794986,1736111454241,-500.0,0.00011367,2]
[347794987,1736111454252,-977.17,0.00011367,2]
[347794988,1736111454264,-1067.44,0.00011367,2]
[347794989,1736111454275,-500.0,0.00011367,2]
[347794990,1736111454289,-500.0,0.00011367,2]
[347794991,1736111454301,-500.0,0.00011367,2]
[347794992,1736111454312,-1379.2,0.00011367,2]
[347794993,1736111454324,-424.94,0.00011367,2]
[347794994,1736111454335,-896.64,0.00011367,2]
[347794995,1736111454347,-500.0,0.00011367,2]
[347794996,1736111454359,-500.0,0.00011367,2]
[347794997,1736111454371,-500.0,0.00011367,2]
[347794998,1736111454382,-500.0,0.00011367,2]
[347794999,1736111454393,-500.0,0.00011367,2]
[347795000,1736111454404,-500.0,0.00011367,2]
[347795001,1736111454415,-500.0,0.00011367,2]
[347795002,1736111454426,-500.0,0.00011367,2]
[347795003,1736111454438,-500.0,0.00011367,2]
[347795004,1736111454449,-500.0,0.00011367,2]
[347795005,1736111454460,-500.0,0.00011367,2]
[347795006,1736111454471,-500.0,0.00011367,2]
[347795007,1736111454482,-919.62,0.00011367,2]
[347795008,1736111454492,-500.0,0.00011367,2]
[347795009,1736111454504,-511.61,0.00011367,2]
[347795010,1736111454515,-500.0,0.00011368,2]
[347795011,1736111454527,-364.82,0.00011368,2]
[347795012,1736111454541,-500.0,0.00011368,2]
[347795013,1736111454553,-1282.19,0.00011368,2]
[347795014,1736111454565,-500.0,0.00011368,2]
[347795015,1736111454577,-500.0,0.00011368,2]
[347795016,1736111454589,-500.0,0.00011368,2]
[347795017,1736111454600,-907.74,0.00011368,2]
[347795018,1736111454612,-607.24,0.00011368,2]
[347795019,1736111454624,-600.33,0.00011368,2]
[347795020,1736111454637,-500.0,0.00011368,2]
[347795021,1736111454650,-2154.76967019,0.00011369,2]
[347795022,1736111454661,-581.54,0.00011369,2]
[347795023,1736111454672,-693.3,0.00011369,2]
[347795024,1736111454684,-888.28,0.00011369,2]
[347795025,1736111454696,-500.0,0.00011369,2]
[347795026,1736111454707,-500.0,0.00011369,2]
[347795027,1736111454721,-500.0,0.00011369,2]
[347795028,1736111454732,-500.0,0.00011369,2]
[347795029,1736111454744,-647.31,0.00011369,2]
[347795030,1736111454755,-540.66,0.00011369,2]
[347795031,1736111454767,-796.69,0.00011369,2]
[347795032,1736111454779,-1201.96,0.00011369,2]
[347795033,1736111454791,-641.75,0.00011369,2]
[347795034,1736111454803,-588.27,0.00011369,2]
[347795035,1736111454814,-382.7,0.00011479,2]
[347795036,1736111454825,-300.0,0.00011479,2]
[347795037,1736111454837,-301.5,0.00011479,2]
[347795038,1736111454848,-300.93,0.00011479,2]
[347795039,1736111454860,-873.48,0.00011479,2]
[347795040,1736111454871,-188.56,0.00011479,2]
[347795041,1736111454883,-151.45,0.00011479,2]
[347795042,1736111454895,-2154.76967019,0.00011497,2]
[347795043,1736111454906,-2751.0,0.00011507,2]
[347795044,1736111454918,-177.0,0.00011507,2]
[347795045,1736111454929,-499.0,0.00011507,2]
[347795046,1736111454940,-150.0,0.00011538,2]
[347795047,1736111454952,-900.0,0.00011538,2]
[347795048,1736111454964,-500.0,0.0001154,2]
[347795049,1736111454976,-500.0,0.0001154,2]
[347795050,1736111454989,-500.0,0.0001154,2]
[347795051,1736111455000,-500.0,0.0001154,2]
[347795052,1736111455012,-500.0,0.0001154,2]
[347795053,1736111455024,-325.73,0.00011576,2]
[347795054,1736111455036,-250.0,0.00011581,2]
[347795055,1736111455047,-201.0,0.00011581,2]
[347795056,1736111455059,-2154.76967019,0.00011624,2]
[347795057,1736111455070,-500.0,0.0001164,2]
[347795058,1736111455082,-742.06,0.0001164,2]
[347795059,1736111455094,-500.0,0.0001164,2]
[347795060,1736111455106,-653.13,0.0001164,2]
[347795061,1736111455117,-500.0,0.0001164,2]
[347795062,1736111455130,-762.11,0.0001164,2]
[347795063,1736111455142,-500.0,0.0001164,2]
[347795064,1736111455154,-547.88,0.0001164,2]
[347795065,1736111455166,-514.21,0.0001164,2]
[347795066,1736111455177,-567.66,0.0001164,2]
[347795067,1736111455188,-816.45,0.0001164,2]
[347795068,1736111455199,-287.96020766,0.0001164,2]
[347795069,1736111455211,-500.0,0.0001164,2]
[347795070,1736111455222,-500.0,0.00011641,2]
[347795071,1736111455234,-500.0,0.00011641,2]
[347795072,1736111455246,-500.0,0.00011641,2]
[347795073,1736111455257,-498.42682735,0.00011641,2]
[347795074,1736111455269,-500.0,0.00011641,2]
[347795075,1736111455282,-988.5,0.00011641,2]
[347795076,1736111455293,-158.336398,0.00011641,2]
[347795077,1736111455305,-500.0,0.00011641,2]
[347795078,1736111455317,-500.0,0.00011641,2]
[347795079,1736111455329,-1498.61,0.00011641,2]
[347795080,1736111455340,-500.0,0.00011641,2]
[347795081,1736111455352,-977.17,0.00011641,2]
[347795082,1736111455363,-1067.44,0.00011641,2]
[347795083,1736111455375,-500.0,0.00011641,2]
[347795084,1736111455386,-500.0,0.00011641,2]
[347795085,1736111455399,-500.0,0.00011641,2]
[347795086,1736111455410,-1379.2,0.00011641,2]
[347795087,1736111455423,-896.64,0.00011641,2]
[347795088,1736111455434,-500.0,0.00011641,2]
[347795089,1736111455445,-500.0,0.00011641,2]
[347795090,1736111455456,-500.0,0.00011641,2]
[347795091,1736111455468,-500.0,0.00011641,2]
[347795092,1736111455480,-500.0,0.00011641,2]
[347795093,1736111455491,-500.0,0.00011641,2]
[347795094,1736111455504,-500.0,0.00011641,2]
[347795095,1736111455515,-500.0,0.00011641,2]
[347795096,1736111455527,-500.0,0.00011641,2]
[347795097,1736111455540,-500.0,0.00011641,2]
[347795098,1736111455551,-500.0,0.00011641,2]
[347795099,1736111455564,-919.62,0.00011641,2]
[347795100,1736111455575,-500.0,0.00011641,2]
[347795101,1736111455586,-511.61,0.00011641,2]
[347795102,1736111455596,-500.0,0.00011642,2]
[347795103,1736111455606,-1282.19,0.00011642,2]
[347795104,1736111455615,-500.0,0.00011642,2]
[347795105,1736111455624,-500.0,0.00011642,2]
[347795106,1736111455635,-500.0,0.00011642,2]
[347795107,1736111455647,-907.74,0.00011642,2]
[347795108,1736111455657,-607.24,0.00011642,2]
[347795109,1736111455667,-600.33,0.00011642,2]
[347795110,1736111455676,-500.0,0.00011642,2]
[347795111,1736111455687,-581.54,0.00011643,2]
[347795112,1736111455698,-693.3,0.00011643,2]
[347795113,1736111455708,-888.28,0.00011643,2]
[347795114,1736111455721,-500.0,0.00011643,2]
[347795115,1736111455731,-474.06293834,0.00011643,2]
[347795116,1736111455740,-315.05563184,0.00011643,2]
[347795117,1736111455750,-500.0,0.00011643,2]
[347795118,1736111455759,-647.31,0.00011643,2]
[347795119,1736111455768,-540.66,0.00011643,2]
[347795120,1736111455778,-796.69,0.00011643,2]
[347795121,1736111455788,-1201.96,0.00011643,2]
[347795122,1736111455798,-641.75,0.00011643,2]
[347795123,1736111455808,-588.27,0.00011643,2]
[347795124,1736111456114,-478.594,0.0001168,2]
[347795125,1736111456134,-2014.0,0.00011746,2]
[347795126,1736111456155,-1266.0,0.00011746,2]
[347795127,1736111456165,-150.0,0.00011746,2]
[347795128,1736111456174,-634.0,0.00011746,2]
[347795129,1736111456184,-566.0,0.00011746,2]
[347795130,1736111456193,-1859.0,0.00011746,2]
[347795131,1736111456203,-1258.0,0.00011746,2]
[347795132,1736111456214,-819.0,0.00011746,2]
[347795133,1736111456224,-920.0,0.00011746,2]
[347795134,1736111456233,-3775.0,0.00011746,2]
[347795135,1736111456243,-3722.0,0.00011746,2]
[347795136,1736111456253,-537.0,0.00011746,2]
[347795137,1736111456262,-3893.0,0.00011746,2]
[347795138,1736111456272,-9616.0,0.00011746,2]
[347795139,1736111456281,-1173.0,0.00011746,2]
[347795140,1736111456291,-172.14,0.00011746,2]
[347795141,1736111456301,-2154.76967019,0.00011752,2]
[347795142,1736111456311,-150.0,0.00011783,2]
[347795143,1736111456320,-200.0,0.000118,2]
[347795144,1736111456330,-500.0,0.00011814,2]
[347795145,1736111456339,-500.0,0.00011814,2]
[347795146,1736111456349,-500.0,0.00011814,2]
[347795147,1736111456360,-500.0,0.00011814,2]
[347795148,1736111456370,-500.0,0.00011814,2]
[347795149,1736111456379,-2154.76967019,0.00011879,2]
[347795150,1736111456389,-429.58022011,0.00011906,2]
[347795151,1736111456399,-500.0,0.00011914,2]
[347795152,1736111456409,-742.06,0.00011914,2]
[347795153,1736111456419,-500.0,0.00011914,2]
[347795154,1736111456428,-653.13,0.00011914,2]
[347795155,1736111456437,-500.0,0.00011914,2]
[347795156,1736111456447,-762.11,0.00011914,2]
[347795157,1736111456457,-500.0,0.00011914,2]
[347795158,1736111456466,-547.88,0.00011914,2]
[347795159,1736111456476,-514.21,0.00011914,2]
[347795160,1736111456486,-567.66,0.00011914,2]
[347795161,1736111456496,-816.45,0.00011914,2]
[347795162,1736111456505,-500.0,0.00011914,2]
[347795163,1736111456515,-472.80591152,0.00011915,2]
[347795164,1736111456524,-500.0,0.00011915,2]
[347795165,1736111456534,-500.0,0.00011915,2]
[347795166,1736111456543,-500.0,0.00011915,2]
[347795167,1736111456553,-988.5,0.00011915,2]
[347795168,1736111456564,-500.0,0.00011915,2]
[347795169,1736111456574,-1498.61,0.00011915,2]
[347795170,1736111456583,-323.6103301,0.00011915,2]
[347795171,1736111456592,-977.17,0.00011915,2]
[347795172,1736111456602,-1067.44,0.00011915,2]
[347795173,1736111456611,-500.0,0.00011915,2]
[347795174,1736111456621,-500.0,0.00011915,2]
[347795175,1736111456630,-500.0,0.00011915,2]
[347795176,1736111456641,-1379.2,0.00011915,2]
[347795177,1736111456650,-896.64,0.00011915,2]
[347795178,1736111456660,-500.0,0.00011915,2]
[347795179,1736111456669,-500.0,0.00011915,2]
[347795180,1736111456679,-500.0,0.00011915,2]
[347795181,1736111456688,-500.0,0.00011915,2]
[347795182,1736111456696,-500.0,0.00011915,2]
[347795183,1736111456706,-500.0,0.00011915,2]
[347795184,1736111456717,-500.0,0.00011915,2]
[347795185,1736111456726,-500.0,0.00011915,2]
[347795186,1736111456736,-500.0,0.00011915,2]
[347795187,1736111456746,-500.0,0.00011915,2]
[347795188,1736111456754,-919.62,0.00011915,2]
[347795189,1736111456763,-500.0,0.00011915,2]
[347795190,1736111456771,-511.61,0.00011915,2]
[347795191,1736111456781,-500.0,0.00011916,2]
[347795192,1736111456791,-1282.19,0.00011916,2]
[347795193,1736111456800,-500.0,0.00011916,2]
[347795194,1736111456809,-500.0,0.00011916,2]
[347795195,1736111456818,-500.0,0.00011916,2]
[347795196,1736111456827,-907.74,0.00011916,2]
[347795197,1736111456837,-607.24,0.00011916,2]
[347795198,1736111456846,-600.33,0.00011916,2]
[347795199,1736111456855,-500.0,0.00011916,2]
[347795200,1736111456865,-581.54,0.00011917,2]
[347795201,1736111456874,-693.3,0.00011917,2]
[347795202,1736111456883,-888.28,0.00011917,2]
[347795203,1736111456893,-500.0,0.00011917,2]
[347795204,1736111456902,-500.0,0.00011917,2]
[347795205,1736111456912,-647.31,0.00011917,2]
[347795206,1736111456921,-540.66,0.00011917,2]
[347795207,1736111456930,-796.69,0.00011917,2]
[347795208,1736111456940,-1201.96,0.00011917,2]
[347795209,1736111456950,-641.75,0.00011917,2]
[347795210,1736111456959,-588.27,0.00011917,2]
[347795211,1736111456968,-1063.69670011,0.00011947,2]
[347795212,1736111456977,-2063.44,0.00012,2]
[347795213,1736111456987,-2990.885,0.00012,2]
[347795214,1736111456996,-171.758,0.00012,2]
[347795215,1736111457006,-2154.76967019,0.00012007,2]
[347795216,1736111457015,-150.0,0.00012028,2]
[347795217,1736111457023,-150.0,0.00012028,2]
[347795218,1736111457032,-150.0,0.00012042,2]
[347795219,1736111457042,-150.0,0.00012042,2]
[347795220,1736111457051,-693.3267136,0.00012043,2]
[347795221,1736111457060,-1129.45435266,0.00012043,2]
[347795222,1736111457069,-1101.56332837,0.00012043,2]
[347795223,1736111457077,-992.37787628,0.00012043,2]
[347795224,1736111457086,-150.0,0.00012044,2]
[347795225,1736111457095,-150.0,0.00012048,2]
[347795226,1736111457104,-150.0,0.0001205,2]
[347795227,1736111457113,-150.0,0.00012051,2]
[347795228,1736111457122,-150.0,0.00012052,2]
[347795229,1736111457131,-150.0,0.00012054,2]
[347795230,1736111457139,-150.0,0.00012056,2]
[347795231,1736111457148,-150.0,0.00012057,2]
[347795232,1736111457157,-150.0,0.00012058,2]